fUSD/lending_fUSD_20251206
["ID","MTS","AMOUNT","RATE_DAILY","PERIOD"]
[396517204,1765027840441,-500.0,0.00013635,2]
[396517206,1765027840450,-500.0,0.00013635,2]
[396517208,1765027840459,-500.0,0.00013635,2]
[396517209,1765027840468,-200.0,0.00013635,2]
[396517210,1765027840477,-500.0,0.00013635,2]
[396517212,1765027840486,-170.75397388,0.00013635,2]
[396517213,1765027840495,-500.0,0.00013635,2]
[396517215,1765027840504,-500.0,0.00013635,2]
[396517217,1765027840513,-500.0,0.00013635,2]
[396517218,1765027840522,-500.0,0.00013635,2]
[396517219,1765027840531,-500.0,0.00013635,2]
[396517220,1765027840540,-500.0,0.00013635,2]
[396517221,1765027840549,-500.0,0.00013635,2]
[396517222,1765027840558,-500.0,0.00013635,2]
[396517223,1765027840567,-500.0,0.00013635,2]
[396517224,1765027840576,-500.0,0.00013635,2]
[396517225,1765027840586,-500.0,0.00013635,2]
[396517226,1765027840595,-200.0,0.00013635,2]
[396517227,1765027840604,-151.0,0.00013635,2]
[396517228,1765027840613,-151.0,0.00013635,2]
[396517229,1765027840622,-151.0,0.00013635,2]
[396517230,1765027840631,-151.0,0.00013635,2]
[396517231,1765027840640,-151.0,0.00013635,2]
[396517232,1765027840650,-151.0,0.00013635,2]
[396517233,1765027840659,-151.0,0.00013635,2]
[396517234,1765027840668,-151.0,0.00013635,2]
[396517235,1765027840678,-151.0,0.00013635,2]
[396517236,1765027840688,-151.0,0.00013635,2]
[396517237,1765027840697,-151.0,0.00013635,2]
[396517238,1765027840706,-151.0,0.00013635,2]
[396517239,1765027840715,-151.0,0.00013635,2]
[396517240,1765027840724,-151.0,0.00013635,2]
[396517241,1765027840733,-151.0,0.00013635,2]
[396517242,1765027840742,-151.0,0.00013635,2]
[396517243,1765027840751,-151.0,0.00013635,2]
[396517244,1765027840761,-151.0,0.00013635,2]
[396517245,1765027840770,-151.0,0.00013635,2]
[396517246,1765027840779,-151.0,0.00013635,2]
[396517247,1765027840788,-1000.0,0.00013635,2]
[396517248,1765027840797,-969.6284,0.00013635,2]
[396517249,1765027840806,-300.0,0.00013644,2]
[396517250,1765027840814,-500.0,0.00013698,2]
[396517251,1765027840823,-500.0,0.00013698,2]
[396517252,1765027840832,-500.0,0.00013698,2]
[396517253,1765027840841,-500.0,0.00013698,2]
[396517254,1765027840850,-540.85044914,0.00013698,2]
[396517255,1765027840859,-500.0,0.00013698,2]
[396517256,1765027840868,-500.0,0.00013698,2]
[396517257,1765027840877,-468.9517815,0.00013698,2]
[396517258,1765027840886,-500.0,0.00013698,2]
[396517259,1765027840895,-500.0,0.00013698,2]
[396517260,1765027840904,-500.0,0.00013698,2]
[396517261,1765027840913,-155.75508132,0.00013698,2]
[396517262,1765027840923,-500.0,0.00013698,2]
[396517263,1765027840932,-503.38985628,0.00013698,2]
[396517264,1765027840941,-500.0,0.00013698,2]
[396517265,1765027840950,-500.0,0.00013698,2]
[396517266,1765027840959,-500.0,0.00013698,2]
[396517267,1765027840968,-500.0,0.00013698,2]
[396517268,1765027840977,-500.0,0.00013698,2]
[396517269,1765027840986,-500.0,0.00013698,2]
[396517270,1765027840996,-300.0,0.00013699,2]
[396517271,1765027841005,-748.91,0.00013699,2]
[396517272,1765027841014,-9999.99,0.00013699,2]
[396517273,1765027841024,-999.99,0.00013699,2]
[396517274,1765027841033,-150.99,0.00013699,2]
[396517275,1765027841042,-299.99,0.00013699,2]
[396517276,1765027841051,-1386.09,0.00013699,2]
[396517277,1765027841060,-1000.0,0.00013699,2]
[396517278,1765027841069,-600.0,0.00013699,2]
[396517279,1765027841079,-2751.0,0.00013779,2]
[396517280,1765027841088,-500.0,0.00013834,2]
[396517281,1765027841097,-202.59163877,0.00013835,2]
[396517282,1765027841105,-500.0,0.00013835,2]
[396517283,1765027841114,-234.18,0.00013939,2]
[396517284,1765027841124,-200.0,0.0001394,2]
[396517285,1765027841133,-207.4,0.0001394,2]
[396517286,1765027841142,-215.0738,0.0001394,2]
[396517287,1765027841151,-223.0315306,0.0001394,2]
[396517288,1765027841159,-187.97642308,0.0001394,2]
[396517289,1765027841168,-578.20924308,0.0001394,2]
[396517290,1765027841177,-574.12855637,0.0001394,2]
[396517291,1765027841186,-153.24536797,0.0001394,2]
[396517292,1765027841195,-500.0,0.0001394,2]
[396517293,1765027841204,-500.0,0.0001394,2]
[396517294,1765027841213,-500.0,0.0001394,2]
[396517295,1765027841222,-631.67161585,0.0001394,2]
[396517296,1765027841231,-1000.0,0.0001394,2]
[396517297,1765027841240,-151.0,0.0001394,2]
[396517298,1765027841250,-500.0,0.0001394,2]
[396517299,1765027841259,-500.0,0.0001394,2]
[396517300,1765027841269,-500.0,0.0001394,2]
[396517301,1765027841279,-500.0,0.0001394,2]
[396517302,1765027841289,-500.0,0.0001394,2]
[396517303,1765027841298,-500.0,0.0001394,2]
[396517304,1765027841308,-500.0,0.0001394,2]
[396517305,1765027841317,-500.0,0.0001394,2]
[396517306,1765027841326,-500.0,0.0001394,2]
[396517307,1765027841335,-500.0,0.0001394,2]
[396517308,1765027841345,-500.0,0.0001394,2]
[396517309,1765027841356,-300.0,0.0001394,2]
[396517310,1765027841365,-9999.99,0.0001402,2]
[396517311,1765027841374,-65089.0,0.0001402,2]
[396517312,1765027841383,-150.99,0.0001402,2]
[396517313,1765027841392,-7026.47002743,0.0001402,2]
[396517314,1765027841403,-3634.57,0.00014113,2]
[396517315,1765027841412,-603.0,0.00014156,2]
[396517316,1765027841421,-239.45,0.00014166,2]
[396517317,1765027841431,-500.0,0.00014183,2]
[396517318,1765027841441,-1000.0,0.00014209,3]
[396517319,1765027841450,-200.0,0.0001421,2]
[396517320,1765027841459,-234.18,0.00014213,2]
[396517321,1765027841469,-600.0,0.00014247,2]
[396517322,1765027841478,-300.0,0.00014247,3]
[396517323,1765027841487,-200.0,0.00014352,2]
[396517324,1765027841497,-2411.06453334,0.0001439,2]
[396517325,1765027841506,-234.18,0.00014487,2]
[396517326,1765027841516,-595.37131296,0.00014488,2]
[396517327,1765027841526,-1000.0,0.00014488,2]
[396517328,1765027841535,-200.0,0.00014496,2]
[396517329,1765027841544,-7026.47002743,0.00014505,2]
[396517330,1765027841554,-200.0,0.00014641,2]
[396517331,1765027841563,-255.0,0.00014644,2]
[396517332,1765027841572,-234.18,0.00014761,2]
[396517333,1765027841581,-200.0,0.00014787,2]
[396517334,1765027841590,-600.0,0.00014795,2]
[396517335,1765027841600,-420.0,0.00014835,2]
[396517336,1765027841609,-420.0,0.00014835,2]
[396517337,1765027841618,-250.0,0.00014887,2]
[396517338,1765027841627,-250.0,0.00014887,2]
[396517339,1765027841636,-1680.0,0.00014888,2]
[396517340,1765027841646,-182.04814394,0.00014889,2]
[396517341,1765027841655,-239.45,0.00014912,2]
[396517342,1765027841664,-7026.47002743,0.0001499,2]
[396517343,1765027841673,-4083.89325936,0.00014999,2]
[396517344,1765027841683,-232.52151134,0.00015,2]
[396517345,1765027841692,-772.08725232,0.00015,2]
[396517346,1765027841701,-1196.65081145,0.00015,2]
[396517347,1765027841710,-50116.84042583,0.00015,2]
[396517348,1765027841720,-180.71,0.00015026,2]
[396517349,1765027841730,-234.21,0.00015035,2]
[396517350,1765027841740,-617.40005154,0.00015036,2]
[396517351,1765027841749,-1000.0,0.00015036,2]
[396517352,1765027841759,-214.65,0.00015068,2]
[396517353,1765027841768,-169.33,0.00015079,2]
[396517354,1765027841778,-208.71,0.00015093,2]
[396517355,1765027841788,-93934.63054785,0.000151,2]
[396517356,1765027841797,-1000.0,0.00015227,2]
[396517357,1765027841807,-200.0,0.00015242,2]
[396517358,1765027841816,-311.1,0.00015309,2]
[396517359,1765027841826,-600.0,0.00015342,2]
[396517360,1765027841837,-271.27813448,0.000154,2]
[396517361,1765027841847,-7026.47002743,0.00015475,2]
[396517362,1765027841856,-1000.0,0.00015499,3]
[396517363,1765027841866,-224.27942167,0.00015566,2]
[396517364,1765027841877,-640.24385345,0.00015584,2]
[396517365,1765027841888,-1000.0,0.00015584,2]
[396517366,1765027841898,-239.45,0.00015657,2]
[396517367,1765027841908,-500.0,0.0001568,2]
[396517368,1765027841918,-500.0,0.0001568,2]
[396517369,1765027841928,-500.0,0.00015681,2]
[396517370,1765027841937,-151.79240975,0.00015681,2]
[396517371,1765027841946,-500.0,0.00015681,2]
[396517372,1765027841955,-595.77466,0.00015682,2]
[396517373,1765027841964,-500.0,0.00015682,2]
[396517374,1765027841973,-500.0,0.00015683,2]
[396517375,1765027841982,-500.0,0.00015684,2]
[396517376,1765027841991,-500.0,0.00015685,2]
[396517377,1765027842000,-500.0,0.00015686,2]
[396517378,1765027842009,-500.0,0.00015687,2]
[396517379,1765027842018,-500.0,0.00015688,2]
[396517380,1765027842027,-500.0,0.00015689,2]
[396517381,1765027842036,-500.0,0.0001569,2]
[396517382,1765027842049,-500.0,0.00015691,2]
[396517383,1765027842058,-500.0,0.00015692,2]
[396517384,1765027842067,-500.0,0.00015693,2]
[396517385,1765027842076,-500.0,0.00015694,2]
[396517386,1765027842088,-500.0,0.00015695,2]
[396517387,1765027842098,-500.0,0.00015696,2]
[396517388,1765027842107,-500.0,0.00015697,2]
[396517389,1765027842118,-500.0,0.00015698,2]
[396517390,1765027842130,-500.0,0.00015699,2]
[396517391,1765027842140,-543.284088,0.000157,2]
[396517392,1765027842151,-433.0,0.00015849,2]
[396517393,1765027842160,-9516.6,0.00015858,2]
[396517394,1765027842171,-600.0,0.0001589,2]
[396517395,1765027842181,-1294.58792372,0.000159,2]
[396517396,1765027842190,-1294.58792369,0.000159,2]
[396517397,1765027842200,-1294.58792369,0.000159,2]
[396517398,1765027842210,-1294.58792369,0.000159,2]
[396517399,1765027842219,-1294.58792369,0.000159,2]
[396517400,1765027842228,-1294.58792369,0.000159,2]
[396517401,1765027842237,-19871.0,0.00015945,2]
[396517402,1765027842246,-7026.47002743,0.0001596,2]
[396517403,1765027842255,-1749.83419334,0.00015976,2]
[396517404,1765027842264,-1497.43292537,0.0001599,2]
[396517405,1765027842273,-1251852.86191949,0.00016,4]
[396517406,1765027842282,-1007.94648807,0.00016036,2]
[396517407,1765027842292,-315.44375187,0.00016076,2]
[396517408,1765027842301,-516.72001383,0.00016132,2]
[396517409,1765027842310,-1000.0,0.00016132,2]
[396517410,1765027842320,-150.0,0.000162,2]
[396517411,1765027842330,-150.0,0.000162,2]
[396517412,1765027842339,-150.0,0.000162,2]
[396517413,1765027842349,-150.0,0.000162,2]
[396517414,1765027842358,-150.0,0.000162,2]
[396517415,1765027842367,-150.0,0.000162,2]
[396517416,1765027842377,-150.0,0.000162,2]
[396517417,1765027842386,-150.0,0.000162,2]
[396517418,1765027842395,-150.0,0.000162,2]
[396517419,1765027842404,-150.4153374,0.000162,2]
[396517420,1765027842413,-150.0,0.000162,2]
[396517421,1765027842422,-150.0,0.000162,2]
[396517422,1765027842433,-150.0,0.000162,2]
[396517423,1765027842442,-22372.07815388,0.000162,5]
[396517424,1765027842451,-587.0,0.0001626,2]
[396517425,1765027842461,-587.0,0.0001626,2]
[396517426,1765027842470,-150.0,0.00016282,2]
[396517428,1765027842479,-150.0,0.00016282,2]
[396517429,1765027842488,-150.0,0.00016306,2]
[396517430,1765027842497,-1749.83419333,0.00016341,2]
[396517431,1765027842506,-150.0,0.00016364,2]
[396517432,1765027842515,-150.0,0.00016364,2]
[396517433,1765027842525,-150.0,0.00016364,2]
[396517434,1765027842535,-200.0,0.00016374,2]
[396517435,1765027842544,-2351.0,0.00016377,2]
[396517436,1765027842553,-150.0,0.000164,2]
[396517437,1765027842562,-239.45,0.00016403,2]
[396517438,1765027842571,-150.0,0.00016412,2]
[396517439,1765027842580,-150.0,0.00016425,2]
[396517440,1765027842589,-214.65,0.00016438,2]
[396517441,1765027842598,-600.0,0.00016438,2]
[396517442,1765027842607,-500.0,0.00016438,2]
[396517443,1765027842616,-7026.47002743,0.00016445,2]
[396517444,1765027842625,-150.0,0.00016445,2]
[396517445,1765027842635,-150.0,0.00016445,2]
[396517446,1765027842644,-150.0,0.000165,2]
[396517447,1765027842653,-150.0,0.00016518,2]
[396517448,1765027842662,-150.0,0.00016527,2]
[396517449,1765027842671,-150.0,0.00016527,2]
[396517451,1765027842680,-150.0,0.00016527,2]
[396517453,1765027842689,-150.0,0.000166,2]
[396517454,1765027842699,-150.0,0.00016609,2]
[396517456,1765027842874,-150.0,0.00016609,2]
[396517457,1765027842884,-150.0,0.00016624,2]
[396517458,1765027842893,-150.0,0.0001665,2]
[396517459,1765027842902,-150.0,0.0001665,2]
[396517460,1765027842913,-322.6107,0.00016678,2]
[396517461,1765027842923,-151.0,0.00016679,2]
[396517462,1765027842932,-1000.0,0.0001668,2]
[396517463,1765027842942,-150.0,0.00016691,2]
[396517464,1765027842951,-150.0,0.00016691,2]
[396517465,1765027842960,-150.0,0.00016691,2]
[396517466,1765027842970,-1749.83419333,0.00016706,2]
[396517467,1765027842979,-158.19557574,0.00016728,2]
[396517468,1765027842988,-150.0,0.00016729,2]
[396517469,1765027842998,-574.05236391,0.00016773,2]
[396517470,1765027843007,-500.0,0.00016773,2]
[396517471,1765027843017,-500.0,0.00016773,2]
[396517472,1765027843026,-500.0,0.00016773,2]
[396517473,1765027843035,-500.0,0.00016773,2]
[396517474,1765027843044,-500.0,0.00016773,2]
[396517475,1765027843053,-500.0,0.00016773,2]
[396517476,1765027843063,-500.0,0.00016773,2]
[396517477,1765027843072,-500.0,0.00016773,2]
[396517478,1765027843081,-500.0,0.00016773,2]
[396517479,1765027843096,-500.0,0.00016773,2]
[396517480,1765027843106,-500.0,0.00016773,2]
[396517481,1765027843115,-500.0,0.00016773,2]
[396517483,1765027843125,-500.0,0.00016773,2]
[396517484,1765027843135,-500.0,0.00016773,2]
[396517486,1765027843144,-500.0,0.00016773,2]
[396517487,1765027843153,-500.0,0.00016773,2]
[396517488,1765027843162,-500.0,0.00016773,2]
[396517489,1765027843172,-500.0,0.00016773,2]
[396517491,1765027843186,-500.0,0.00016773,2]
[396517492,1765027843195,-500.0,0.00016773,2]
[396517494,1765027843204,-500.0,0.00016773,2]
[396517496,1765027843213,-638.73148126,0.00016773,2]
[396517497,1765027843223,-500.0,0.00016773,2]
[396517498,1765027843232,-500.0,0.00016773,2]
[396517499,1765027843242,-482.05777665,0.00016773,2]
[396517500,1765027843251,-150.0,0.00016773,2]
[396517501,1765027843260,-150.0,0.00016773,2]
[396517502,1765027843270,-151.0,0.00016798,2]
[396517503,1765027843280,-151.0,0.00016798,2]
[396517504,1765027843290,-151.0,0.00016798,2]
[396517505,1765027843300,-152.0,0.00016798,2]
[396517506,1765027843309,-152.0,0.00016798,2]
[396517507,1765027843318,-833.0,0.00016798,2]
[396517508,1765027843327,-156.48922587,0.00016798,2]
[396517509,1765027843336,-151.12890987,0.00016798,2]
[396517511,1765027843345,-153.0,0.00016798,2]
[396517512,1765027843355,-1200.0,0.000168,2]
[396517513,1765027843364,-150.0,0.000168,2]
[396517514,1765027843374,-150.0,0.000168,2]
[396517515,1765027843384,-150.0,0.00016835,2]
[396517516,1765027843393,-375.302,0.00016852,2]
[396517517,1765027843403,-3446.0,0.00016852,2]
[396517518,1765027843412,-1334.924,0.00016852,2]
[396517519,1765027843423,-150.0,0.00016855,2]
[396517520,1765027843432,-150.0,0.00016855,2]
[396517521,1765027843441,-150.0,0.00016855,2]
[396517522,1765027843451,-150.0,0.00016875,2]
[396517523,1765027843460,-238.17,0.0001688,2]
[396517524,1765027843470,-500.0,0.00016892,2]
[396517525,1765027843485,-500.0,0.00016892,2]
[396517526,1765027843498,-500.0,0.00016892,2]
[396517527,1765027843508,-215.48627334,0.000169,2]
[396517528,1765027843517,-297.42503577,0.00016918,2]
[396517529,1765027843528,-181.14,0.00016928,2]
[396517530,1765027843537,-7026.47002743,0.0001693,2]
[396517531,1765027843547,-150.0,0.00016936,2]
[396517532,1765027843556,-150.0,0.00016936,2]
[396517533,1765027843566,-150.0,0.00016941,2]
[396517534,1765027843575,-600.0,0.00016986,2]
[396517535,1765027843585,-1497.43292537,0.0001699,2]
[396517536,1765027843595,-1497.43292537,0.0001699,2]
[396517537,1765027843605,-300.0,0.00016999,2]
[396517538,1765027843614,-150.0,0.00017,2]
[396517539,1765027843624,-2000.0,0.00017,2]
[396517540,1765027843633,-4419450.12389915,0.00017,2]
[396517541,1765027843804,-3913.90929472,0.00017,2]
[396517542,1765027844214,-372.8609399,0.00013535,2]
[396517543,1765027844267,-1158.6701601,0.00013535,2]
[396517544,1765027844276,-1698.0,0.00014185,2]
[396517545,1765027844290,-763.00317507,0.00014213,2]
[396517546,1765027844305,-503.99682493,0.00014213,2]
[396517547,1765027844326,-1076.0,0.00014241,2]
[396517548,1765027844337,-1457.0,0.00014269,2]
[396517549,1765027844347,-4718.207,0.00016852,2]
[396517550,1765027844356,-259.97,0.00016879,2]
[396517551,1765027844366,-3136.25670147,0.000169,2]
[396517552,1765027844375,-410413.86887953,0.00017,2]
[396517553,1765027844387,-151.0,0.00017,2]
[396517554,1765027844397,-151.0,0.00017,2]
[396517555,1765027844407,-151.0,0.00017,2]
[396517556,1765027844416,-151.0,0.00017,2]
[396517557,1765027844426,-151.0,0.00017,2]
[396517558,1765027844435,-151.0,0.00017,2]
[396517559,1765027844444,-151.0,0.00017,2]
[396517560,1765027844454,-152.035684,0.00017,2]
[396517561,1765027844464,-400.17609275,0.00017,2]
[396517562,1765027844473,-151.0,0.00017,2]
[396517563,1765027844483,-180.71,0.00017008,2]
[396517564,1765027844492,-150.0,0.00017018,2]
[396517565,1765027844501,-150.0,0.00017018,2]
[396517566,1765027844510,-150.0,0.00017018,2]
[396517567,1765027844520,-500.0,0.00017029,2]
[396517568,1765027844529,-500.0,0.00017029,2]
[396517569,1765027844540,-500.0,0.00017029,2]
[396517570,1765027844549,-150.0,0.00017047,2]
[396517571,1765027844559,-1749.83419333,0.0001707,2]
[396517572,1765027844569,-169.33,0.00017098,2]
[396517573,1765027844579,-614.0,0.00017099,2]
[396517574,1765027844588,-1259.0,0.00017099,2]
[396517575,1765027844598,-910.0,0.00017099,2]
[396517576,1765027844607,-1195.0,0.00017099,2]
[396517577,1765027844616,-150.0,0.000171,2]
[396517578,1765027844626,-150.0,0.000171,2]
[396517579,1765027844636,-150.0,0.000171,2]
[396517580,1765027844646,-150.0,0.000171,2]
[396517581,1765027844658,-150.0,0.000171,2]
[396517582,1765027844667,-150.0,0.000171,2]
[396517583,1765027844678,-208.71,0.00017116,2]
[396517584,1765027844688,-736.0,0.00017148,2]
[396517585,1765027844697,-239.45,0.00017148,2]
[396517586,1765027844708,-150.0,0.00017153,2]
[396517587,1765027844717,-154.50354865,0.00017166,2]
[396517588,1765027844727,-373.26398331,0.00017166,2]
[396517589,1765027844736,-353.53425648,0.00017166,2]
[396517590,1765027844746,-500.0,0.00017166,2]
[396517591,1765027844755,-150.0,0.00017166,2]
[396517592,1765027844764,-150.0,0.00017166,2]
[396517593,1765027844774,-252.75874584,0.00017166,2]
[396517594,1765027844783,-200.0,0.00017174,2]
[396517595,1765027844794,-150.0,0.00017182,2]
[396517596,1765027844803,-150.0,0.00017182,2]
[396517597,1765027844813,-150.0,0.00017182,2]
[396517598,1765027844823,-3181.93,0.00017188,2]
[396517599,1765027844832,-150.0,0.000172,2]
[396517600,1765027844842,-1000.0,0.00017228,2]
[396517601,1765027844852,-150.0,0.00017259,2]
[396517602,1765027844861,-150.0,0.00017264,2]
[396517603,1765027844871,-150.0,0.00017264,2]
[396517604,1765027844881,-158.19557574,0.00017285,2]
[396517605,1765027844892,-500.0,0.00017303,2]
[396517606,1765027844903,-155.06798198,0.00017303,2]
[396517607,1765027844913,-155.2633738,0.00017303,2]
[396517608,1765027844923,-155.60555311,0.00017303,2]
[396517609,1765027844932,-500.0,0.00017303,2]
[396517610,1765027844943,-500.0,0.00017303,2]
[396517611,1765027844953,-150.0,0.00017303,2]
[396517612,1765027844964,-150.0,0.00017303,2]
[396517613,1765027844974,-500.0,0.00017303,2]
[396517614,1765027844984,-150.0,0.00017303,2]
[396517615,1765027844996,-150.0,0.00017303,2]
[396517616,1765027845005,-1149.45175636,0.00017321,2]
[396517617,1765027845015,-1000.0,0.00017321,2]
[396517618,1765027845027,-653.33190664,0.00017321,2]
[396517619,1765027845036,-1000.0,0.00017321,2]
[396517620,1765027845049,-1000.0,0.00017321,2]
[396517621,1765027845058,-1000.0,0.00017321,2]
[396517622,1765027845067,-1000.0,0.00017321,2]
[396517623,1765027845077,-1000.0,0.00017321,2]
[396517624,1765027845086,-1000.0,0.00017321,2]
[396517625,1765027845095,-1000.0,0.00017321,2]
[396517626,1765027845433,-1000.0,0.00017321,2]
[396517627,1765027845443,-1000.0,0.00017321,2]
[396517628,1765027845453,-1000.0,0.00017321,2]
[396517630,1765027845463,-1000.0,0.00017321,2]
[396517631,1765027845472,-1014.90232975,0.00017321,2]
[396517633,1765027845482,-1000.0,0.00017321,2]
[396517634,1765027845491,-524.99444915,0.00017321,2]
[396517635,1765027845500,-1000.0,0.00017321,2]
[396517636,1765027845510,-1000.0,0.00017321,2]
[396517637,1765027845519,-1000.0,0.00017321,2]
[396517638,1765027845530,-1000.0,0.00017321,2]
[396517639,1765027845539,-432.59185548,0.00017321,2]
[396517640,1765027845549,-1000.0,0.00017321,2]
[396517641,1765027845559,-150.0,0.00017325,2]
[396517642,1765027845568,-150.0,0.00017345,2]
[396517643,1765027845577,-150.0,0.00017345,2]
[396517644,1765027845587,-150.0,0.00017345,2]
[396517645,1765027845596,-150.0,0.00017365,2]
[396517646,1765027845605,-238.15853501,0.00017368,2]
[396517647,1765027845614,-150.0,0.000174,2]
[396517648,1765027845624,-150.0,0.000174,2]
[396517649,1765027845633,-1000.0,0.000174,2]
[396517650,1765027845643,-161.685,0.00017401,2]
[396517651,1765027845652,-2261.406,0.00017401,2]
[396517652,1765027845662,-207.89,0.00017402,2]
[396517653,1765027845671,-1275.45018518,0.00017411,2]
[396517654,1765027845681,-181.14,0.00017411,2]
[396517655,1765027845690,-7026.47002743,0.00017415,2]
[396517656,1765027845700,-205.76,0.00017415,2]
[396517657,1765027845709,-150.0,0.00017427,2]
[396517658,1765027845719,-150.0,0.00017427,2]
[396517659,1765027845728,-1749.83419333,0.00017435,2]
[396517660,1765027845738,-500.0,0.0001744,2]
[396517661,1765027845747,-549.07364909,0.0001744,2]
[396517662,1765027845757,-500.0,0.0001744,2]
[396517663,1765027845766,-170.73698442,0.0001744,2]
[396517664,1765027845775,-150.0,0.0001744,2]
[396517665,1765027845784,-500.0,0.0001744,2]
[396517666,1765027845794,-150.0,0.0001744,2]
[396517667,1765027845803,-150.0,0.0001744,2]
[396517668,1765027845812,-150.0,0.00017471,2]
[396517669,1765027845822,-180.71,0.00017498,2]
[396517670,1765027845831,-300.0,0.00017499,2]
[396517671,1765027845840,-559.77205437,0.00017499,2]
[396517672,1765027845850,-5138.0,0.000175,2]
[396517673,1765027845859,-174532.90574243,0.000175,2]
[396517674,1765027845883,-834.84277497,0.000175,2]
[396517675,1765027845903,-2630.64669746,0.000175,2]
[396517676,1765027846708,-986.89522002,0.00014298,2]
[396517677,1765027846727,-933.10477998,0.00014298,2]
[396517678,1765027846737,-196.0,0.00014326,2]
[396517679,1765027846746,-564.07360902,0.00014354,2]
[396517683,1765027850951,833.04087024,0.00013479,2]
[396517688,1765027856991,-589.524522,0.00013535,2]
[396517689,1765027860272,-166.27444294,0.00013535,2]
[396517691,1765027864034,-157.46286867,0.00013535,2]
[396517692,1765027867309,-159.29900526,0.00013535,2]
[396517693,1765027870087,-297.67702424,0.00013535,2]
[396517694,1765027871581,-156.09342791,0.00013535,2]
[396517695,1765027873941,150.0,0.00013534,2]
[396517697,1765027875250,-225.8981609,0.00013535,2]
[396517701,1765027892962,500.0,0.00013534,2]
[396517702,1765027893024,500.0,0.00013534,2]
[396517703,1765027893184,500.0,0.00013534,2]
[396517704,1765027893250,300.0,0.00013534,2]
[396517710,1765027903811,500.0,0.00013534,2]
[396517711,1765027904143,500.0,0.00013534,2]
[396517712,1765027904487,500.0,0.00013534,2]
[396517713,1765027904785,500.0,0.00013534,2]
[396517714,1765027905107,500.0,0.00013534,2]
[396517715,1765027905424,500.0,0.00013534,2]
[396517716,1765027905723,489.97567094,0.00013534,2]
[396517717,1765027905769,10.02432906,0.00013534,2]
[396517718,1765027906092,500.0,0.00013534,2]
[396517719,1765027906418,375.91995681,0.00013534,2]
[396517725,1765027925930,500.0,0.00013534,2]
[396517726,1765027926019,500.0,0.00013534,2]
[396517727,1765027926082,500.0,0.00013534,2]
[396517728,1765027926147,500.0,0.00013534,2]
[396517729,1765027926203,500.0,0.00013534,2]
[396517730,1765027926262,500.0,0.00013534,2]
[396517731,1765027926337,500.0,0.00013534,2]
[396517732,1765027926403,500.0,0.00013534,2]
[396517733,1765027926486,500.0,0.00013534,2]
[396517734,1765027926558,500.0,0.00013534,2]
[396517735,1765027926616,500.0,0.00013534,2]
[396517736,1765027926681,500.0,0.00013534,2]
[396517737,1765027926815,350.0,0.00013534,2]
[396517738,1765027926886,500.0,0.00013534,2]
[396517739,1765027927004,500.0,0.00013534,2]
[396517740,1765027927078,500.0,0.00013534,2]
[396517741,1765027927148,500.0,0.00013534,2]
[396517742,1765027927216,500.0,0.00013534,2]